Cogmind - Beta 17.1 @@@ ROGUE MODE // 2026.09.21 @ 15:23:15 Player: Jiber Result: Destroyed by G-47 Trooper with Particle Gun Performance ------------- Evolutions (2) 1000 Regions Visited (5) 1000 Robots Destroyed (39) 195 Value Destroyed (1079) 1079 Prototype IDs (1) 20 Alien Tech Used (0) 0 Bonus (175) 175 TOTAL SCORE: 3469 Bonus ------- Follower Combat Kills 175 Cogmind --------- Core Integrity 0/550 Matter 265/300 Energy 100/100 System Corruption 0% Temperature Cool (27) Movement Core (100) Ox1 Location -8/Materials Parts ------- > --- POWER (1) -------- (None) > --- PROPULSION (2) --- (None) > --- UTILITY (4) ------ Machine Analyzer > --- WEAPON (4) ------- Assault Cannon > --- INVENTORY (5) ---- Improved Hover Unit Improved Hover Unit Improved Heat Sink Peak State ------------ > --- POWER ------------ Deuterium Engine > --- PROPULSION ------- Improved Treads Wheel > --- UTILITY ---------- Improved Heat Sink Medium Storage Unit Machine Analyzer Hardened Medium Armor Plating > --- WEAPON ----------- Beam Rifle Particle Gun Advanced Beam Cannon Heavy Assault Rifle > --- INVENTORY -------- Ion Engine Light Nuclear Core Wheel Improved Hover Unit Improved Hover Unit Scythe [Rating: 26] Favorites ----------- Power Improved Ion Engine Engine Improved Ion Engine Power Core Light Nuclear Core Propulsion Compact Wheel Treads Improved Treads Wheel Compact Wheel Hover Unit Improved Hover Unit Utility Small Storage Unit Device Heat Sink Storage Small Storage Unit Processor Visual Processing Unit Protection Light Armor Plating Weapon Beam Rifle Energy Gun Beam Rifle Energy Cannon Advanced Beam Cannon Ballistic Gun Assault Rifle Ballistic Cannon Assault Cannon Launcher Grenade Launcher Slashing Weapon Scythe Build | -11 -10 -10 -9 -9 -8 ------- Run | Yrd Mat Min Mat Min Mat Slots Evolved 4 | . . . 2 . 2 Power . | . . . . . . Propulsion . | . . . . . . Utility 2 | . . . 1 . 1 Weapon 2 | . . . 1 . 1 Parts Attached 36 | 5 . . 14 3 14 Power 6 | 1 . . 2 1 2 Engine 5 | 1 . . 2 1 1 Core 1 | . . . . . 1 Reactor . | . . . . . . Propulsion 9 | 1 . . 4 1 3 Treads 2 | . . . . 1 1 Leg . | . . . . . . Wheel 4 | 1 . . 1 . 2 Hover 3 | . . . 3 . . Flight . | . . . . . . Utility 9 | 1 . . 3 1 4 Device 3 | . . . 1 1 1 Storage 2 | 1 . . . . 1 Processor 2 | . . . 1 . 1 Hackware . | . . . . . . Protection 2 | . . . 1 . 1 Artifact . | . . . . . . Weapon 12 | 2 . . 5 . 5 Energy Gun 5 | . . . 4 . 1 Energy Cannon 1 | . . . . . 1 Ballistic Gun 3 | 2 . . . . 1 Ballistic Cannon 1 | . . . . . 1 Launcher 1 | . . . 1 . . Special Weapon . | . . . . . . Impact Weapon . | . . . . . . Slashing Weapon 1 | . . . . . 1 Piercing Weapon . | . . . . . . Special Melee Weapon . | . . . . . . Unidentified Prototypes 1 | . . . . . 1 Parts Lost 28 | . . . 5 5 18 Power 4 | . . . . 1 3 Propulsion 7 | . . . 1 2 4 Utility 6 | . . . 1 1 4 Weapon 11 | . . . 3 1 7 Highest Loss Streak 15 | . . . 5 2 15 To Critical Strikes . | . . . . . . Average Backups 5 | 2 3 5 6 4 5 Power . | . 1 1 1 . 1 Propulsion 3 | 1 2 3 3 3 3 Utility . | . . 1 . . . Weapon . | . . . 1 . . Tool/Special . | . . . . . . Unused Backups 3 | . . . 1 . 2 Power . | . . . . . . Propulsion 3 | . . . 1 . 2 Utility . | . . . . . . Weapon . | . . . . . . Tool/Special . | . . . . . . Average Slot Usage (%) 86 | . 71 71 88 95 81 Engine 10 | . 14 14 11 10 8 Treads 3 | . . . . 5 8 Wheel 8 | . 14 14 13 . 7 Hover 4 | . . . 3 13 . Device 6 | . . . 3 10 11 Storage 10 | . 14 14 11 11 8 Processor 9 | . . . 10 11 9 Protection 1 | . . . 3 . . Energy Gun 17 | . . . 11 31 19 Ballistic Gun 9 | . 28 28 14 . 3 Launcher 2 | . . . 5 1 . Peak Build Rating 26 | 5 5 5 16 16 26 Average Rating 12 | 4 5 5 11 14 18 On Entrance 7 | . 5 5 5 16 13 Avg Prop Armor Cover (%) 9 | . . . . 5 10 Naked Turns . | . . . . . . Heaviest Build 34 | 12 12 12 22 22 34 Greatest Support 32 | 16 16 16 32 23 23 Greatest Overweight (x) 4 | . . . 3 1 4 Average Overweight (x) . | . . . . . 1 Largest Inventory Capacity 10 | 8 8 8 8 8 10 Average Capacity 8 | 7 8 8 8 8 9 Most Carried 9 | 3 5 6 8 6 9 Average Carried 5 | 2 3 5 6 4 5 Final Capacity 8 | 8 8 8 8 8 5 Final Carried 6 | 3 5 6 6 5 3 Class Distribution -------------------- 41% | Skirmisher 25% | Mutant 23% | Scavenger-Skirmisher 9% | Tank Dominant Class ---------------- Mutant | -10/Materials Mutant | -10/Mines Skirmisher | -9/Materials Skirmisher | -9/Mines Scavenger-Skirmisher | -8/Materials Resources | -11 -10 -10 -9 -9 -8 ----------- Run | Yrd Mat Min Mat Min Mat Matter Collected 858 | 180 106 . 341 40 191 Remotely . | . . . . . . Salvage Created 1205 | . 126 . 421 264 394 Parts 57 | . 8 . 28 4 17 Haulers Intercepted . | . . . . . . Recyclers Shooed 2 | . . . 1 . 1 Parts Field Recycled . | . . . . . . Retrieved Matter . | . . . . . . Parts Self-Destructed . | . . . . . . Prevented . | . . . . . . Parts Restored . | . . . . . . Kills | -11 -10 -10 -9 -9 -8 ------- Run | Yrd Mat Min Mat Min Mat Combat Hostiles Destroyed 33 | . 2 . 17 7 7 Melee 1 | . . . . . 1 Guns 19 | . 2 . 9 6 2 Cannons 3 | . . . . . 3 AOE 8 | . . . 8 . . Classes Destroyed 8 | . 2 . 3 2 1 Worker 2 | . . . 1 1 . Builder 1 | . . . . . 1 Watcher 4 | . 2 . 1 . 1 Swarmer 11 | . . . 11 . . Grunt 16 | . 2 . 3 5 6 Duelist 1 | . . . . 1 . Sentry 4 | . . . 3 . 1 Assembled 1 | . . . . 1 . Best Kill Streak 5 | . 3 . 5 3 2 Combat Bots Only 5 | . 2 . 5 2 2 Max Kills in Single Turn 4 | . 1 . 4 2 1 Gunslinging . | . . . . . . Exploded 4 | . . . 4 . . Melee 1 | . . . . . 1 Uniques/NPCs Destroyed . | . . . . . . Combat | -11 -10 -10 -9 -9 -8 -------- Run | Yrd Mat Min Mat Min Mat Hostile Shots Fired 270 | . 6 . 80 47 137 Missed 62 | . 1 . 21 12 28 Hits 208 | . 5 . 59 35 109 Melee 2 | . . . . 2 . Projectile 206 | . 5 . 59 33 109 Critical Strikes 12 | . . . 1 . 11 Damage Taken 3215 | . 56 . 698 473 1988 Core 871 | . 45 . 160 103 563 Absorbed by Shields . | . . . . . . Core Remaining (%) 72 | 100 . 82 . 34 . Volleys Fired 106 | . 6 . 40 28 32 Largest 4 | . 2 . 3 3 4 Hottest 212 | . 40 . 142 168 212 Shots Fired 255 | . 12 . 85 72 86 Gun 228 | . 12 . 79 71 66 Cannon 20 | . . . . . 20 Launcher 7 | . . . 6 1 . Special . | . . . . . . Kinetic 84 | . 12 . 50 . 22 Thermal 164 | . . . 29 71 64 Explosive 7 | . . . 6 1 . Electromagnetic . | . . . . . . Robot Hit Streak 8 | . 7 . 7 8 6 Robot Miss Streak 5 | . 1 . 5 5 5 Penetration Max . | . . . . . . Secondary Targets 1 | . . . . 1 . Max Gunslinging Chain 1 | . . . . 1 . Shots Hit Robots 147 | . 9 . 43 39 56 Core Hits 75 | . 6 . 31 16 22 Critical Kills . | . . . . . . Critical Parts Destroyed . | . . . . . . Critical Strikes 8 | . . . . 6 2 Burn 7 | . . . . 6 1 Blast 1 | . . . . . 1 Melee Attacks 3 | . . . . . 3 Impact . | . . . . . . Slashing 3 | . . . . . 3 Piercing . | . . . . . . Sneak Attacks . | . . . . . . Combat Hostiles . | . . . . . . Follow-up Attacks . | . . . . . . Damage Inflicted 2759 | . 108 . 975 599 1077 Guns 1942 | . 108 . 568 584 682 Cannons 291 | . . . . . 291 Explosions 410 | . . . 403 7 . Melee 94 | . . . . . 94 Ramming 22 | . . . 4 8 10 Kinetic 738 | . 108 . 354 . 276 Thermal 1495 | . . . 214 584 697 Explosive 410 | . . . 403 7 . Electromagnetic . | . . . . . . Impact . | . . . . . . Slashing 94 | . . . . . 94 Piercing . | . . . . . . Highest Corruption . | . . . . . . Average Corruption . | . . . . . . Corruption Purged . | . . . . . . Corruption Blocked . | . . . . . . Overload Shots . | . . . . . . Overflow Damage 41 | . . . 27 14 . Projectiles . | . . . . . . Explosions 41 | . . . 27 14 . Melee . | . . . . . . Knockbacks 1 | . . . . . 1 Impact . | . . . . . . Kinetic 1 | . . . . . 1 Secondary . | . . . . . . Self-Inflicted Damage 59 | . . . 19 35 5 Shots 3 | . . . 2 1 . Rammed 6 | . . . 1 4 1 Targets Rammed 6 | . . . 1 4 1 Kicked . | . . . . . . Crushed . | . . . . . . Highest Temperature 652 | . . . 242 345 652 Average Temperature 140 | . . . 91 98 225 Received Heat Transfer 1479 | . 30 . 135 144 1170 Effects 18 | . . . . . 18 Shutdowns 2 | . . . . . 2 Energy Bleed 2 | . . . . . 2 Interference 4 | . . . . . 4 Matter Decay 1 | . . . . . 1 Damage (minor) 1 | . . . . . 1 Damage (major) 7 | . . . . . 7 Damage (core) 1 | . . . . . 1 Siege Activations . | . . . . . . Martial Activations . | . . . . . . Shielding Activations . | . . . . . . Robots Disrupted . | . . . . . . Combat Hostiles . | . . . . . . Robots Corrupted . | . . . . . . Combat Hostiles . | . . . . . . Parts Fried . | . . . . . . Impact Corruptions . | . . . . . . Robots Melted 2 | . . . . 1 1 Combat Hostiles 2 | . . . . 1 1 Parts Melted 7 | . . . 1 3 3 Heat Transferred 4181 | . . . 555 1924 1702 Parts Sabotaged . | . . . . . . Parts Stolen . | . . . . . . Parts Stripped . | . . . . . . Power Chain Reactions 1 | . . . 1 . . Alert | -11 -10 -10 -9 -9 -8 ------- Run | Yrd Mat Min Mat Min Mat Maximum Alert Level 1 | . . . 1 . . Low Security (%) 98 | 100 100 100 94 100 100 Level 1 1 | . . . 5 . . Level 2 . | . . . . . . Level 3 . | . . . . . . Level 4 . | . . . . . . Level 5 . | . . . . . . High Security . | . . . . . . Max Security . | . . . . . . Peak Influence 297 | . 37 6 297 115 141 Initial 115 | . . 6 . 115 17 Average 53 | . 19 3 63 71 54 Influence Increases 1156 | . 58 . 526 141 431 Destroy 0b10 Robot/C 740 | . 40 . 340 120 240 Destroy 0b10 Robot/NC 40 | . 10 . 10 5 15 Destroy Leader 138 | . 4 . 72 10 52 Allied During Kill 22 | . . . . 3 19 Successful Hack 4 | . 4 . . . . Disable Machine 60 | . . . 45 . 15 Destroy Structure 32 | . . . 29 3 . Lose Combat Pursuer 120 | . . . 30 . 90 Influence Decreases 1065 | . 40 18 229 392 386 Entered New Map 223 | . . 12 . 182 29 Time Decay 502 | . 40 6 179 160 117 Lost Part 280 | . . . 50 50 180 Lost Ally 60 | . . . . . 60 Squads Dispatched 5 | . . . 1 . 4 Investigation 1 | . . . . . 1 Extermination . | . . . . . . Reinforcement 4 | . . . 1 . 3 Assault . | . . . . . . Garrison . | . . . . . . Intercept . | . . . . . . Searches Triggered . | . . . . . . Construction Impeded 1 | . . . 1 . . Haulers Reinforced . | . . . . . . Active Scanning Responses . | . . . . . . Cargo Convoy Interrupts . | . . . . . . Stealth | -11 -10 -10 -9 -9 -8 --------- Run | Yrd Mat Min Mat Min Mat Distress Signals 3 | . . . 1 . 2 Communications Jammed . | . . . . . . Distress Signals . | . . . . . . Times Spotted 69 | . 5 . 23 7 34 Peak Tracking Total 10 | . 2 . 5 2 10 Tactical Retreats 4 | . . . 2 . 2 Traps | -11 -10 -10 -9 -9 -8 ------- Run | Yrd Mat Min Mat Min Mat Traps Triggered 2 | . . . 1 . 1 Indirectly . | . . . . . . Trap Hack Attempts . | . . . . . . Triggered . | . . . . . . Disarmed . | . . . . . . Reprogrammed . | . . . . . . Reused . | . . . . . . Traps Extracted . | . . . . . . Installed . | . . . . . . Triggered . | . . . . . . Machines | -11 -10 -10 -9 -9 -8 ---------- Run | Yrd Mat Min Mat Min Mat Machines Disabled 5 | . 1 . 3 . 1 Max in Single Turn 2 | . 1 . 2 . 1 Machines Repaired . | . . . . . . Machines Dismantled . | . . . . . . Machines Sabotaged . | . . . . . . Overloaded Fab Kills . | . . . . . . Hacking | -11 -10 -10 -9 -9 -8 --------- Run | Yrd Mat Min Mat Min Mat Machines Accessed 2 | . 1 . 1 . . Terminals 2 | . 1 . 1 . . Fabricators . | . . . . . . Repair Stations . | . . . . . . Recycling Units . | . . . . . . Scanalyzers . | . . . . . . Garrison Access . | . . . . . . Total Hacks 7 | . 5 . 2 . . Successful 2 | . 1 . 1 . . Failed 5 | . 4 . 1 . . Catastrophic . | . . . . . . Database Lockouts . | . . . . . . Manual . | . . . . . . Terminals 7 | . 5 . 2 . . Fabricators . | . . . . . . Repair Stations . | . . . . . . Recycling Units . | . . . . . . Scanalyzers . | . . . . . . Garrison Access . | . . . . . . Terminal Hacks 2 | . 1 . 1 . . Robot Analysis 2 | . 1 . 1 . . Fabricator Hacks . | . . . . . . Repair Station Hacks . | . . . . . . Recycling Unit Hacks . | . . . . . . Scanalyzer . | . . . . . . Garrison Access Hacks . | . . . . . . Unauthorized Hacks . | . . . . . . Terminals . | . . . . . . Fabricators . | . . . . . . Repair Stations . | . . . . . . Recycling Units . | . . . . . . Scanalyzers . | . . . . . . Garrison Access . | . . . . . . Data Cores Recovered . | . . . . . . Used . | . . . . . . Hacking Detections 2 | . 1 . 1 . . Full Trace Events . | . . . . . . Feedback Events . | . . . . . . Feedback Blocked . | . . . . . . Robot Schematics Acquired . | . . . . . . Robots Built . | . . . . . . Authchips . | . . . . . . Time . | . . . . . . Total Robot Build Rating . | . . . . . . Part Schematics Acquired . | . . . . . . Parts Built . | . . . . . . Authchips . | . . . . . . Time . | . . . . . . Total Part Build Rating . | . . . . . . Part Studies Acquired . | . . . . . . Parts Repaired . | . . . . . . Time . | . . . . . . Parts Recycled . | . . . . . . Recycled Matter . | . . . . . . Retrieved Matter . | . . . . . . Retrieved Components . | . . . . . . Parts Scanalyzed . | . . . . . . Part Schematics Acquired . | . . . . . . Parts Damaged . | . . . . . . Bothacking | -11 -10 -10 -9 -9 -8 ------------ Run | Yrd Mat Min Mat Min Mat Used RIF Installer . | . . . . . . Robots Hacked . | . . . . . . Non-combat . | . . . . . . Combat . | . . . . . . Robot Hacks Applied . | . . . . . . Relay Couplers Released . | . . . . . . Fabnet Peak Effective % . | . . . . . . Robots Rewired . | . . . . . . Allies Hacked . | . . . . . . Hacks Repelled . | . . . . . . Allies | -11 -10 -10 -9 -9 -8 -------- Run | Yrd Mat Min Mat Min Mat Total Allies 3 | . . . . 3 . Largest Group 3 | . . . . 3 3 Highest-Rated Group 40 | . . . . 40 40 Highest-Rated Ally 16 | . . . . 16 16 Total Orders . | . . . . . . Ally Attacks 30 | . . . . 3 27 Total Damage 366 | . . . . 27 339 Kills 6 | . . . . . 6 Allies Corrupted . | . . . . . . Allies Melted . | . . . . . . Intel | -11 -10 -10 -9 -9 -8 ------- Run | Yrd Mat Min Mat Min Mat Active Infowar (turns) 1006 | . . . 389 321 296 Optics 793 | . . . 389 321 83 Machine Analysis 225 | . . . . . 225 Robot Analysis Total 2 | . 1 . 1 . . Derelict Logs Recovered . | . . . . . . Drone Launches . | . . . . . . Drone Recoveries . | . . . . . . Exploration | -11 -10 -10 -9 -9 -8 ------------- Run | Yrd Mat Min Mat Min Mat Turns Passed 1258 | 73 115 37 390 321 322 Spaces Moved 701 | 62 94 37 220 128 160 Core 8 | 4 . . . . 4 Treads 89 | . . . . 74 15 Legs . | . . . . . . Wheels 515 | 58 94 37 185 . 141 Hover 89 | . . . 35 54 . Flight . | . . . . . . Fastest Speed 50 | 50 100 100 100 116 50 Average Speed 113 | 96 100 100 107 141 118 Slowest Speed 250 | 100 100 100 240 160 250 Overloaded Moves . | . . . . . . Propulsion Burnouts . | . . . . . . Robots Hopped . | . . . . . . Potential Cave-ins . | . . . . . . Cave-ins Triggered . | . . . . . . Exploration Rate (%) 20 | 3 33 15 26 23 22 Regions Visited 5 Branch Regions 2 Pre-discovered Areas . | . . . . . . Known Exits Taken . | . . . . . . Unknown Exits Taken 5 | 1 1 1 1 1 . Scrap Searched . | . . . . . . Spaces Dug . | . . . . . . Terrain Destroyed 29 | . . . 26 3 . Melee . | . . . . . . Projectile . | . . . . . . AOE 29 | . . . 26 3 . Terrain Rammed . | . . . . . . Walls Destroyed . | . . . . . . Machines Disabled . | . . . . . . Actions | -11 -10 -10 -9 -9 -8 --------- Run | Yrd Mat Min Mat Min Mat Total 944 | 74 103 37 299 207 224 Wait 49 | . 2 . 6 41 . Move 696 | 61 93 36 219 127 160 Hop . | . . . . . . Pick Up 39 | 8 2 1 13 3 12 Fast Attach . | . . . . . . Attach 32 | 5 . . 10 4 13 Detach . | . . . . . . Swap 7 | . . . 5 . 2 Drop 6 | . . . 5 . 1 Fire 106 | . 6 . 40 28 32 Melee 3 | . . . . . 3 Ram 2 | . . . 1 . 1 Kick . | . . . . . . Crush 4 | . . . . 4 . Escape Stasis . | . . . . . . Rewire . | . . . . . . Trap . | . . . . . . Miscellaneous . | . . . . . . Route ------- -11/Scrapyard -10/Materials -10/Mines -9/Materials -9/Mines -8/Materials History --------- Turn | Location | Event 34 | -11/Scrapyard | Discovered new exit (range 12) 74 | -11/Scrapyard | Entered Materials 142 | -10/Materials | Discovered new exit (range 14) 189 | -10/Materials | Entered Mines 213 | -10/Mines | YI-UF0 nonchalantly dropped a Grenade Launcher on the ground 220 | -10/Mines | Discovered new exit (range 7) 226 | -10/Mines | Entered Materials 226 | -9/Materials | Evolved 2 slots: Utility x1, Weapon x1 537 | -9/Materials | Lost 5 parts (1n1u3w) 549 | -9/Materials | Discovered new exit (range 12) 616 | -9/Materials | Entered Mines 639 | -9/Mines | Excavation squad dispatched 639 | -9/Mines | A large section of the Mines collapsed 656 | -9/Mines | Core integrity fell below 50% 848 | -9/Mines | Assisted by bots powering up and referring to "LRC-V3" 898 | -9/Mines | Discovered new exit (range 11) 937 | -9/Mines | Entered Materials 937 | -8/Materials | Accompanied by 3 allies 937 | -8/Materials | Evolved 2 slots: Utility x1, Weapon x1 1236 | -8/Materials | Core integrity fell below 50% 1253 | -8/Materials | Core integrity fell below 20% 1259 | -8/Materials | Destroyed by G-47 Trooper with Particle Gun Last Messages --------------- 01246_ Acquired Assault Cannon. 01247_ M-13 Machinist repairs G-47 Trooper Aluminum Leg. 01248_ U-05 Engineer builds a Wall. 01248_ U-05 Engineer lays Concrete. 01250_ Lgt. Nuclear Core destroyed. 01251_ Scythe destroyed. 01251_ U-05 Engineer builds a Wall. 01251_ Destroyed Backup Propulsion I. 01253_ U-05 Engineer builds a Wall. 01253_ G-47 Trooper Particle Gun blasted off. 01253_ G-47 Trooper destroyed. 01255_ M-13 Machinist repairs W-25 Informer Imp. Hover Unit. 01255_ U-05 Engineer builds a Door. 01255_ G-47 Trooper knocked back. 01257_ U-05 Engineer lays Concrete. 01258_ Critical hit (Burn: +37). 01258_ U-05 Engineer builds a Wall. 01259_ Imp. Heat Sink destroyed. Map ----- +----------------------------------------------------+ | ??????????? % #?????????? ???????? | | ??????????? ! #??????????##???????? | | ??????????? % #???????????????????? | | ???????????############# #???????????????????? | | ??????????????????????### %%##????????#??????????? | | ????????????????????? T # #???????? #??????????? | | ?????????????????????? # ###????## ###????????? | | ??????????????????????? + #T#####! #?"""?"""? | | ????????????????????????# / #?"""?"""? | | ????????????????????????# T +?"""?"""? | | ?????????"""?"""????"""?# = = #????????? | | ?????????"""?"""????"""?# # #????????? | | ?????????"""?"""????"""?# % #??####????????? | | ?????????"""?"""????????# #??????????????? | | ?????????"""?"""????"""?# "T" ############???? | | ????????????????????"""?# % "" ?? | | ????????????????????"""?# ?? | | ????????????????????????# % ?? | | ????????????????????????##;;;;#u##### #########??? | | ????????????????????????# * [ # #??????????? | | ????????????????????????# =%% ; #??????????? | | ????????????????????????# %[ ; #??????????? | | ????????????????????????# ; #??????????? | | ????????????????????????# ; #??????????? | | ????????????????????????# ; #??????????? | | ????????????????????????#@ ; #??????????? | | ????????????????????????##; % ;;m#??????????? | | ?????????????????????????### g ;;t#??????????? | | ???????????????????????????#" ggg g;# #??????????? | | ???????????????????????????##"" ##????????????? | | ????????????????????????????#"" #?????????????? | | ????????????????????????????# #?????????????? | | ????????????????????????????#""" #?????????????? | | ????????????????????????????#""" #?????????????? | | ?????????????????????????????""" #?????????????? | | ???????????????????????????????? #?????????????? | | ??????????????????????T??????""" #?????????????? | | ?????????????????????????????"""? +?????????????? | | ???????????????????????"""???"""?? #?????????????? | | ??????????????????????"""""??????? ??????????????? | | ??????????????????????"""""??????????????????????? | | ??????????????????????"""""??????????????????????? | | ???????????????????????"""???????????????????????? | | ?????????????????????????????????????????????????? | | ?????????????????????????????????????????????????? | | ?????????????????????????????????????????????????? | | ?????????????????????????????????????????????????? | | ?????????????????????????????????????????????????? | | ?????????????????????????????????????????????????? | | ?????????????????????????????????????????????????? | +----------------------------------------------------+ Best States ------------- Heat Dissipation 55 Energy Generation 14 Energy Capacity 275 Matter Stores 300 Matter Capacity 300 Sight Range 18 Terrain Scan Density 10 Armor Coverage 225 Evasion (%) 41 Recoil Reduction 1 Item Schematics ----------------- None Robot Schematics ------------------ None Fabricated ------------ Nothing Repaired ---------- Nothing Studied --------- None Alien Tech Used ----------------- None Achievements -------------- None Challenges ------------ None Game ------ Seed ReinforcedDroneChaingun Manual? 0 Play Time 00:17:24 Cumulative 72.4 hours Start 2026.09.21 @ 15:04:04 End 2026.09.21 @ 15:23:15 Sessions 1 Manual Loads 0 Difficulty Rogue Special Mode None Game No. 87 Rogue 87 Adventurer 0 Explorer 0 Win Type - Total 1 Types 0/0/1/0/0/0/0/0/0/0 Lore% 35 Gallery% 42 Achievement% 33 Wizard Run 0 Options --------- Layout 1 ASCII 0 Keyboard 0 Movement Mouse Keybinds 0 Fullscreen 2 Font 32/SmallcapsGlow Map View 50x35 Zoom Use 0% Tactical HUD 1 Map Filters NONE Filters NONE Steam 1 RUN: cbdd1283-6a75-4eac-84e4-cc71ca2f7351